[Event "Titled Tuesday Blitz April 11 Early 2023"]
[White "Rendle, Thomas E"]
[Black "DIM90"]
[WhiteFideId "408760"]
[WhiteElo "2428"]
[BlackElo "2410"]
[Result "1-0"]
[Round "02"]
[TimeControl "180+2"]
[Date "2023.04.11"]
[WhiteClock "0:00:28"]
[BlackClock "0:00:41"]

1. e4 {[%clk 0:03:00]}  e5 {[%clk 0:02:58]} 2. Nf3 {[%clk 0:03:00]}  Nf6 {[%clk 0:02:58]} 3. Nxe5 {[%clk 0:02:55]}  d6 {[%clk 0:02:58]} 4. Nd3 {[%clk 0:02:55]}  Nxe4 {[%clk 0:02:57]} 5. Be2 {[%clk 0:02:54]}  d5 {[%clk 0:02:50]} 6. O-O {[%clk 0:02:53]}  Bd6 {[%clk 0:02:51]} 7. b3 {[%clk 0:02:51]}  O-O {[%clk 0:02:50]} 8. Bb2 {[%clk 0:02:51]}  Qh4 {[%clk 0:02:49]} 9. f4 {[%clk 0:02:45]}  Nc6 {[%clk 0:02:41]} 10. Nc3 {[%clk 0:02:37]}  Be6 {[%clk 0:02:28]} 11. Qe1 {[%clk 0:02:26]}  Qxe1 {[%clk 0:02:26]} 12. Rfxe1 {[%clk 0:02:22]}  Nxd2 {[%clk 0:02:26]} 13. f5 {[%clk 0:02:07]}  Bxf5 {[%clk 0:02:23]} 14. Nxd5 {[%clk 0:02:08]}  Rfe8 {[%clk 0:02:12]} 15. Rad1 {[%clk 0:02:07]}  Ne4 {[%clk 0:02:02]} 16. g3 {[%clk 0:02:00]}  Ng5 {[%clk 0:01:55]} 17. N5f4 {[%clk 0:01:49]}  Ne5 {[%clk 0:01:43]} 18. Nxe5 {[%clk 0:01:43]}  Bxe5 {[%clk 0:01:43]} 19. Bxe5 {[%clk 0:01:33]}  Rxe5 {[%clk 0:01:43]} 20. h4 {[%clk 0:01:33]}  Ne4 {[%clk 0:01:30]} 21. Bf3 {[%clk 0:01:30]}  Rae8 {[%clk 0:01:28]} 22. g4 {[%clk 0:01:22]}  Bc8 {[%clk 0:01:18]} 23. Rxe4 {[%clk 0:01:19]}  Rxe4 {[%clk 0:01:17]} 24. Bxe4 {[%clk 0:01:19]}  Bxg4 {[%clk 0:01:17]} 25. Rd4 {[%clk 0:01:08]}  c5 {[%clk 0:01:13]} 26. Rd2 {[%clk 0:01:08]}  g5 {[%clk 0:01:10]} 27. Nd5 {[%clk 0:01:06]}  Kg7 {[%clk 0:01:06]} 28. Bg2 {[%clk 0:00:57]}  gxh4 {[%clk 0:01:05]} 29. Nf4 {[%clk 0:00:56]}  b6 {[%clk 0:01:03]} 30. Kf2 {[%clk 0:00:56]}  h5 {[%clk 0:01:03]} 31. Rd5 {[%clk 0:00:53]}  Re7 {[%clk 0:00:59]} 32. Nxh5+ {[%clk 0:00:52]}  Bxh5 {[%clk 0:00:58]} 33. Rxh5 {[%clk 0:00:53]}  Rd7 {[%clk 0:00:55]} 34. Ke3 {[%clk 0:00:47]}  Re7+ {[%clk 0:00:54]} 35. Be4 {[%clk 0:00:44]}  h3 {[%clk 0:00:52]} 36. Kf4 {[%clk 0:00:41]}  Rd7 {[%clk 0:00:52]} 37. Rxh3 {[%clk 0:00:40]}  Rd2 {[%clk 0:00:52]} 38. Rg3+ {[%clk 0:00:40]}  Kf6 {[%clk 0:00:53]} 39. Rg2 {[%clk 0:00:40]}  Rd4 {[%clk 0:00:53]} 40. Ke3 {[%clk 0:00:40]}  Rd1 {[%clk 0:00:52]} 41. Rf2+ {[%clk 0:00:39]}  Ke7 {[%clk 0:00:53]} 42. Bd3 {[%clk 0:00:37]}  Re1+ {[%clk 0:00:52]} 43. Kd2 {[%clk 0:00:37]}  Re5 {[%clk 0:00:50]} 44. Re2 {[%clk 0:00:36]}  Kd6 {[%clk 0:00:49]} 45. Rxe5 {[%clk 0:00:36]}  Kxe5 {[%clk 0:00:50]} 46. Ke3 {[%clk 0:00:36]}  f6 {[%clk 0:00:48]} 47. a3 {[%clk 0:00:36]}  Kd5 {[%clk 0:00:46]} 48. c3 {[%clk 0:00:34]}  Ke5 {[%clk 0:00:46]} 49. Ba6 {[%clk 0:00:28]}  Kd5 {[%clk 0:00:45]} 50. Bb7+ {[%clk 0:00:28]}  Ke5 {[%clk 0:00:45]} 51. a4 {[%clk 0:00:28]}  a5 {[%clk 0:00:43]} 52. Ba8 {[%clk 0:00:27]}  f5 {[%clk 0:00:43]} 53. Bb7 {[%clk 0:00:27]}  f4+ {[%clk 0:00:42]} 54. Kf3 {[%clk 0:00:27]}  Kf5 {[%clk 0:00:42]} 55. Be4+ {[%clk 0:00:25]}  Ke5 {[%clk 0:00:43]} 56. Bd3 {[%clk 0:00:25]}  Kd5 {[%clk 0:00:36]} 57. Kxf4 {[%clk 0:00:25]}  c4 {[%clk 0:00:37]} 58. Bxc4+ {[%clk 0:00:26]}  Kc5 {[%clk 0:00:37]} 59. Bb5 {[%clk 0:00:26]}  Kd6 {[%clk 0:00:37]} 60. Ke3 {[%clk 0:00:27]}  Kc5 {[%clk 0:00:38]} 61. Kd3 {[%clk 0:00:27]}  Kd6 {[%clk 0:00:38]} 62. Kd4 {[%clk 0:00:28]}  Ke6 {[%clk 0:00:38]} 63. b4 {[%clk 0:00:27]}  Kd6 {[%clk 0:00:39]} 64. bxa5 {[%clk 0:00:27]}  bxa5 {[%clk 0:00:40]} 65. c4 {[%clk 0:00:28]}  Kc7 {[%clk 0:00:41]} 66. Kc5 {[%clk 0:00:28]}  Kb7 {[%clk 0:00:40]} 67. Kd5 {[%clk 0:00:28]}  Ka7 {[%clk 0:00:41]} 1-0


[Site "https://www.chess.com"]

[Event "Titled Tuesday Blitz April 11 Early 2023"]
[White "Itgelt, Khuyagtsogt"]
[Black "Zeman, Matyas"]
[WhiteFideId "4902912"]
[BlackFideId "364398"]
[WhiteElo "2227"]
[BlackElo "2254"]
[Result "0-1"]
[Round "02"]
[TimeControl "180+2"]
[Date "2023.04.11"]
[WhiteClock "0:00:08"]
[BlackClock "0:00:25"]

1. e4 {[%clk 0:03:00]}  c5 {[%clk 0:02:55]} 2. Nf3 {[%clk 0:03:00]}  Nc6 {[%clk 0:02:55]} 3. g3 {[%clk 0:03:00]}  g6 {[%clk 0:02:54]} 4. Bg2 {[%clk 0:03:00]}  Bg7 {[%clk 0:02:55]} 5. O-O {[%clk 0:03:00]}  d6 {[%clk 0:02:54]} 6. Re1 {[%clk 0:03:01]}  Bg4 {[%clk 0:02:54]} 7. h3 {[%clk 0:03:00]}  Bxf3 {[%clk 0:02:54]} 8. Bxf3 {[%clk 0:03:01]}  Nf6 {[%clk 0:02:55]} 9. c3 {[%clk 0:03:01]}  O-O {[%clk 0:02:55]} 10. d4 {[%clk 0:03:02]}  cxd4 {[%clk 0:02:53]} 11. cxd4 {[%clk 0:03:03]}  e5 {[%clk 0:02:50]} 12. dxe5 {[%clk 0:02:59]}  dxe5 {[%clk 0:02:51]} 13. Nc3 {[%clk 0:02:59]}  Qxd1 {[%clk 0:02:42]} 14. Rxd1 {[%clk 0:03:00]}  Nd4 {[%clk 0:02:42]} 15. Bg2 {[%clk 0:03:00]}  Rfd8 {[%clk 0:02:38]} 16. Bg5 {[%clk 0:02:58]}  h6 {[%clk 0:02:38]} 17. Bxf6 {[%clk 0:02:52]}  Bxf6 {[%clk 0:02:39]} 18. Nd5 {[%clk 0:02:53]}  Bg7 {[%clk 0:02:39]} 19. Rac1 {[%clk 0:02:53]}  Bf8 {[%clk 0:02:37]} 20. Rc7 {[%clk 0:02:50]}  Rab8 {[%clk 0:02:35]} 21. Bf1 {[%clk 0:02:38]}  Ne6 {[%clk 0:02:35]} 22. Rc3 {[%clk 0:02:20]}  Bb4 {[%clk 0:02:29]} 23. Rb3 {[%clk 0:02:15]}  Bc5 {[%clk 0:02:25]} 24. Kg2 {[%clk 0:02:15]}  Kg7 {[%clk 0:02:14]} 25. Bc4 {[%clk 0:02:08]}  Bd4 {[%clk 0:02:12]} 26. Ra3 {[%clk 0:01:43]}  a6 {[%clk 0:02:05]} 27. b4 {[%clk 0:01:43]}  h5 {[%clk 0:01:57]} 28. Rad3 {[%clk 0:01:41]}  h4 {[%clk 0:01:57]} 29. Bb3 {[%clk 0:01:40]}  hxg3 {[%clk 0:01:56]} 30. fxg3 {[%clk 0:01:40]}  Rh8 {[%clk 0:01:53]} 31. Rf1 {[%clk 0:01:37]}  Ng5 {[%clk 0:01:49]} 32. Nc3 {[%clk 0:00:54]}  Rxh3 {[%clk 0:01:26]} 33. Rxf7+ {[%clk 0:00:38]}  Nxf7 {[%clk 0:01:26]} 34. Kxh3 {[%clk 0:00:39]}  Rh8+ {[%clk 0:01:26]} 35. Kg2 {[%clk 0:00:37]}  Nd6 {[%clk 0:01:24]} 36. Ne2 {[%clk 0:00:31]}  Nxe4 {[%clk 0:01:06]} 37. Nxd4 {[%clk 0:00:31]}  exd4 {[%clk 0:01:07]} 38. Rxd4 {[%clk 0:00:32]}  Nf6 {[%clk 0:01:07]} 39. Rc4 {[%clk 0:00:31]}  Rd8 {[%clk 0:01:07]} 40. Rc7+ {[%clk 0:00:31]}  Rd7 {[%clk 0:01:08]} 41. Rc8 {[%clk 0:00:26]}  Ne4 {[%clk 0:01:02]} 42. Rg8+ {[%clk 0:00:24]}  Kf6 {[%clk 0:01:01]} 43. Rf8+ {[%clk 0:00:23]}  Ke5 {[%clk 0:01:01]} 44. Re8+ {[%clk 0:00:23]}  Kd4 {[%clk 0:01:00]} 45. Kh3 {[%clk 0:00:19]}  Rh7+ {[%clk 0:00:55]} 46. Kg2 {[%clk 0:00:19]}  Rd7 {[%clk 0:00:51]} 47. Bc2 {[%clk 0:00:19]}  Nc3 {[%clk 0:00:43]} 48. a3 {[%clk 0:00:13]}  Rd6 {[%clk 0:00:42]} 49. Re7 {[%clk 0:00:12]}  b5 {[%clk 0:00:40]} 50. Rg7 {[%clk 0:00:12]}  Ne4 {[%clk 0:00:29]} 51. Kf3 {[%clk 0:00:12]}  Nd2+ {[%clk 0:00:26]} 52. Kg4 {[%clk 0:00:12]}  Ne4 {[%clk 0:00:19]} 53. Bxe4 {[%clk 0:00:10]}  Kxe4 {[%clk 0:00:20]} 54. Kg5 {[%clk 0:00:11]}  Rd3 {[%clk 0:00:20]} 55. Kxg6 {[%clk 0:00:09]}  Rxg3+ {[%clk 0:00:20]} 56. Kf6 {[%clk 0:00:09]}  Rxg7 {[%clk 0:00:21]} 57. Kxg7 {[%clk 0:00:10]}  Kd3 {[%clk 0:00:21]} 58. Kf6 {[%clk 0:00:05]}  Kc3 {[%clk 0:00:22]} 59. Ke5 {[%clk 0:00:06]}  Kb3 {[%clk 0:00:22]} 60. Kd4 {[%clk 0:00:07]}  Kxa3 {[%clk 0:00:23]} 61. Kc5 {[%clk 0:00:07]}  Ka4 {[%clk 0:00:23]} 62. Kb6 {[%clk 0:00:07]}  Kxb4 {[%clk 0:00:24]} 63. Kxa6 {[%clk 0:00:08]}  Kc4 {[%clk 0:00:25]} 0-1


[Site "https://www.chess.com"]

[Event "Titled Tuesday Blitz April 11 Early 2023"]
[White "Van Osch, Mees"]
[Black "Makhnev, Denis"]
[WhiteFideId "1035967"]
[BlackFideId "13707647"]
[WhiteElo "2324"]
[BlackElo "2515"]
[Result "0-1"]
[Round "02"]
[TimeControl "180+2"]
[Date "2023.04.11"]
[WhiteClock "0:00:01"]
[BlackClock "0:00:34"]

1. e4 {[%clk 0:02:56]}  c6 {[%clk 0:02:59]} 2. d4 {[%clk 0:02:55]}  d5 {[%clk 0:02:59]} 3. Nc3 {[%clk 0:02:56]}  dxe4 {[%clk 0:02:59]} 4. Nxe4 {[%clk 0:02:57]}  Bf5 {[%clk 0:02:58]} 5. Ng3 {[%clk 0:02:57]}  Bg6 {[%clk 0:02:58]} 6. Nh3 {[%clk 0:02:57]}  e6 {[%clk 0:02:58]} 7. Nf4 {[%clk 0:02:58]}  Bd6 {[%clk 0:02:58]} 8. h4 {[%clk 0:02:58]}  Qc7 {[%clk 0:02:57]} 9. Nxg6 {[%clk 0:02:58]}  hxg6 {[%clk 0:02:57]} 10. Ne4 {[%clk 0:02:59]}  Bf4 {[%clk 0:02:54]} 11. Bxf4 {[%clk 0:02:59]}  Qxf4 {[%clk 0:02:53]} 12. Ng5 {[%clk 0:03:00]}  Nf6 {[%clk 0:02:36]} 13. g3 {[%clk 0:02:59]}  Qd6 {[%clk 0:02:36]} 14. Bg2 {[%clk 0:02:53]}  Qb4+ {[%clk 0:02:33]} 15. Qd2 {[%clk 0:02:51]}  Qxb2 {[%clk 0:02:31]} 16. O-O {[%clk 0:02:51]}  Qb6 {[%clk 0:02:27]} 17. a4 {[%clk 0:02:43]}  O-O {[%clk 0:02:25]} 18. a5 {[%clk 0:02:24]}  Qc7 {[%clk 0:02:24]} 19. Rfe1 {[%clk 0:02:16]}  Nbd7 {[%clk 0:02:22]} 20. a6 {[%clk 0:02:13]}  b6 {[%clk 0:02:19]} 21. c4 {[%clk 0:02:07]}  Rad8 {[%clk 0:02:16]} 22. Qe3 {[%clk 0:02:00]}  Rfe8 {[%clk 0:02:10]} 23. Rad1 {[%clk 0:01:51]}  Nb8 {[%clk 0:02:04]} 24. Qa3 {[%clk 0:01:32]}  Re7 {[%clk 0:01:44]} 25. d5 {[%clk 0:01:29]}  Red7 {[%clk 0:01:32]} 26. Nxf7 {[%clk 0:00:45]}  Rxf7 {[%clk 0:01:10]} 27. dxe6 {[%clk 0:00:44]}  Re7 {[%clk 0:01:10]} 28. Rd3 {[%clk 0:00:35]}  Rxd3 {[%clk 0:00:54]} 29. Qxd3 {[%clk 0:00:36]}  Nxa6 {[%clk 0:00:53]} 30. Qxg6 {[%clk 0:00:31]}  Nc5 {[%clk 0:00:52]} 31. h5 {[%clk 0:00:22]}  Rxe6 {[%clk 0:00:50]} 32. Rxe6 {[%clk 0:00:18]}  Nxe6 {[%clk 0:00:51]} 33. h6 {[%clk 0:00:18]}  Qf7 {[%clk 0:00:47]} 34. Qf5 {[%clk 0:00:11]}  gxh6 {[%clk 0:00:44]} 35. Bxc6 {[%clk 0:00:11]}  Nd4 {[%clk 0:00:43]} 36. Qc8+ {[%clk 0:00:05]}  Qf8 {[%clk 0:00:43]} 37. Qb7 {[%clk 0:00:02]}  Nxc6 {[%clk 0:00:42]} 38. Qxc6 {[%clk 0:00:03]}  Qe7 {[%clk 0:00:40]} 39. Qc8+ {[%clk 0:00:02]}  Kg7 {[%clk 0:00:40]} 40. Kg2 {[%clk 0:00:02]}  a5 {[%clk 0:00:38]} 41. Qb8 {[%clk 0:00:01]}  Qe6 {[%clk 0:00:34]} 0-1


[Site "https://www.chess.com"]

[Event "Titled Tuesday Blitz April 11 Early 2023"]
[White "Mendez Fortes, Eduardo Jesus"]
[Black "Ronka, Erik"]
[WhiteFideId "3502376"]
[BlackFideId "505080"]
[WhiteElo "2307"]
[BlackElo "2264"]
[Result "1-0"]
[Round "02"]
[TimeControl "180+2"]
[Date "2023.04.11"]
[WhiteClock "0:00:07"]
[BlackClock "0:00:02"]

1. e4 {[%clk 0:03:00]}  c6 {[%clk 0:02:58]} 2. d4 {[%clk 0:03:00]}  d5 {[%clk 0:02:59]} 3. Nc3 {[%clk 0:03:01]}  dxe4 {[%clk 0:02:59]} 4. Nxe4 {[%clk 0:03:02]}  Bf5 {[%clk 0:03:00]} 5. Ng3 {[%clk 0:03:02]}  Bg6 {[%clk 0:03:00]} 6. Nh3 {[%clk 0:03:03]}  e6 {[%clk 0:02:59]} 7. Nf4 {[%clk 0:03:03]}  Bd6 {[%clk 0:03:00]} 8. h4 {[%clk 0:03:02]}  Qc7 {[%clk 0:03:01]} 9. Nxg6 {[%clk 0:02:55]}  hxg6 {[%clk 0:03:00]} 10. Ne4 {[%clk 0:02:56]}  Nf6 {[%clk 0:03:00]} 11. Ng5 {[%clk 0:02:54]}  Bf4 {[%clk 0:02:55]} 12. Bxf4 {[%clk 0:02:51]}  Qxf4 {[%clk 0:02:56]} 13. g3 {[%clk 0:02:51]}  Qd6 {[%clk 0:02:54]} 14. Qd2 {[%clk 0:02:45]}  Nbd7 {[%clk 0:02:41]} 15. O-O-O {[%clk 0:02:44]}  Qd5 {[%clk 0:02:31]} 16. Bd3 {[%clk 0:02:34]}  Qxa2 {[%clk 0:02:30]} 17. Qb4 {[%clk 0:02:32]}  b5 {[%clk 0:01:59]} 18. Rhe1 {[%clk 0:02:12]}  a5 {[%clk 0:01:48]} 19. Qd6 {[%clk 0:01:29]}  Qd5 {[%clk 0:01:48]} 20. Qf4 {[%clk 0:01:21]}  O-O {[%clk 0:01:44]} 21. g4 {[%clk 0:00:56]}  Rfe8 {[%clk 0:00:43]} 22. Re5 {[%clk 0:00:38]}  Qa2 {[%clk 0:00:25]} 23. h5 {[%clk 0:00:36]}  gxh5 {[%clk 0:00:24]} 24. gxh5 {[%clk 0:00:36]}  Re7 {[%clk 0:00:22]} 25. h6 {[%clk 0:00:31]}  g6 {[%clk 0:00:21]} 26. h7+ {[%clk 0:00:29]}  Kh8 {[%clk 0:00:19]} 27. Rc5 {[%clk 0:00:20]}  Qa1+ {[%clk 0:00:16]} 28. Kd2 {[%clk 0:00:20]}  Qxb2 {[%clk 0:00:17]} 29. Rxc6 {[%clk 0:00:18]}  Qb4+ {[%clk 0:00:16]} 30. c3 {[%clk 0:00:16]}  e5 {[%clk 0:00:13]} 31. Qf3 {[%clk 0:00:13]}  Qb2+ {[%clk 0:00:12]} 32. Ke1 {[%clk 0:00:13]}  exd4+ {[%clk 0:00:12]} 33. Kf1 {[%clk 0:00:14]}  Rae8 {[%clk 0:00:11]} 34. Rxf6 {[%clk 0:00:13]}  Qxc3 {[%clk 0:00:05]} 35. Rd6 {[%clk 0:00:13]}  f5 {[%clk 0:00:04]} 36. Kg2 {[%clk 0:00:09]}  Qc5 {[%clk 0:00:03]} 37. Qf4 {[%clk 0:00:09]}  Ne5 {[%clk 0:00:03]} 38. Ra6 {[%clk 0:00:09]}  Nxd3 {[%clk 0:00:02]} 39. Rxd3 {[%clk 0:00:08]}  Qd5+ {[%clk 0:00:03]} 40. Rf3 {[%clk 0:00:09]}  Re5 {[%clk 0:00:02]} 41. Ra7 {[%clk 0:00:08]}  d3 {[%clk 0:00:02]} 42. Nf7+ {[%clk 0:00:08]}  Kxh7 {[%clk 0:00:02]} 43. Nxe5+ {[%clk 0:00:08]}  Kg8 {[%clk 0:00:02]} 44. Qg3 {[%clk 0:00:07]}  Re6 {[%clk 0:00:02]} 45. Nxg6 {[%clk 0:00:07]} 1-0


[Site "https://www.chess.com"]

[Event "Titled Tuesday Blitz April 11 Early 2023"]
[White "Borgaonkar Akshay"]
[Black "ArtemDyachuk"]
[WhiteFideId "25639110"]
[WhiteElo "2063"]
[BlackElo "2393"]
[Result "1-0"]
[Round "02"]
[TimeControl "180+2"]
[Date "2023.04.11"]
[WhiteClock "0:00:42"]
[BlackClock "0:00:02"]

1. a3 {[%clk 0:02:55]}  e5 {[%clk 0:02:59]} 2. c4 {[%clk 0:02:55]}  Nf6 {[%clk 0:02:57]} 3. e3 {[%clk 0:02:55]}  b6 {[%clk 0:02:55]} 4. Nc3 {[%clk 0:02:54]}  Bb7 {[%clk 0:02:55]} 5. b3 {[%clk 0:02:50]}  Be7 {[%clk 0:02:52]} 6. Bb2 {[%clk 0:02:50]}  O-O {[%clk 0:02:52]} 7. d3 {[%clk 0:02:49]}  Re8 {[%clk 0:02:48]} 8. Nf3 {[%clk 0:02:49]}  Rf8 {[%clk 0:02:47]} 9. Nxe5 {[%clk 0:02:47]}  d5 {[%clk 0:02:47]} 10. cxd5 {[%clk 0:02:46]}  Nxd5 {[%clk 0:02:48]} 11. Be2 {[%clk 0:02:44]}  Bf6 {[%clk 0:02:46]} 12. Ne4 {[%clk 0:02:36]}  Bxe5 {[%clk 0:02:24]} 13. Bxe5 {[%clk 0:02:37]}  Re8 {[%clk 0:02:24]} 14. Bb2 {[%clk 0:02:34]}  f5 {[%clk 0:02:21]} 15. Nc3 {[%clk 0:02:26]}  Nf6 {[%clk 0:01:33]} 16. Bf3 {[%clk 0:02:23]}  Bxf3 {[%clk 0:01:28]} 17. Qxf3 {[%clk 0:02:24]}  Nbd7 {[%clk 0:01:28]} 18. Nd5 {[%clk 0:02:21]}  Nxd5 {[%clk 0:01:15]} 19. Qxd5+ {[%clk 0:02:20]}  Kh8 {[%clk 0:01:14]} 20. Qxf5 {[%clk 0:02:15]}  Nc5 {[%clk 0:01:07]} 21. Rd1 {[%clk 0:02:04]}  Qd6 {[%clk 0:00:39]} 22. O-O {[%clk 0:01:59]}  Re6 {[%clk 0:00:36]} 23. b4 {[%clk 0:01:53]}  Nd7 {[%clk 0:00:34]} 24. Qg5 {[%clk 0:01:47]}  Rg6 {[%clk 0:00:32]} 25. Qh4 {[%clk 0:01:43]}  Re8 {[%clk 0:00:25]} 26. e4 {[%clk 0:01:41]}  c5 {[%clk 0:00:10]} 27. bxc5 {[%clk 0:01:40]}  Nxc5 {[%clk 0:00:11]} 28. Qh3 {[%clk 0:01:24]}  Ne6 {[%clk 0:00:09]} 29. g3 {[%clk 0:01:21]}  Rf8 {[%clk 0:00:06]} 30. Qh5 {[%clk 0:01:15]}  Nf4 {[%clk 0:00:05]} 31. Qe5 {[%clk 0:01:12]}  Qd7 {[%clk 0:00:03]} 32. f3 {[%clk 0:00:47]}  Qh3 {[%clk 0:00:02]} 33. Rf2 {[%clk 0:00:48]}  Nh5 {[%clk 0:00:02]} 34. Rg2 {[%clk 0:00:45]}  h6 {[%clk 0:00:02]} 35. Rf1 {[%clk 0:00:44]}  Nf6 {[%clk 0:00:01]} 36. Qf5 {[%clk 0:00:41]}  Qxf5 {[%clk 0:00:01]} 37. exf5 {[%clk 0:00:42]}  Rg5 {[%clk 0:00:02]} 38. g4 {[%clk 0:00:42]}  Nd5 {[%clk 0:00:02]} 39. h4 {[%clk 0:00:42]} 1-0


[Site "https://www.chess.com"]

[Event "Titled Tuesday Blitz April 11 Early 2023"]
[White "Srinath, Rao S.V."]
[Black "krucki03"]
[WhiteFideId "5028876"]
[WhiteElo "2196"]
[BlackElo "2393"]
[Result "0-1"]
[Round "02"]
[TimeControl "180+2"]
[Date "2023.04.11"]
[WhiteClock "0:00:07"]
[BlackClock "0:00:05"]

1. d4 {[%clk 0:03:00]}  Nf6 {[%clk 0:02:59]} 2. Nf3 {[%clk 0:03:00]}  c5 {[%clk 0:02:59]} 3. e3 {[%clk 0:02:45]}  b6 {[%clk 0:02:56]} 4. Bd3 {[%clk 0:02:42]}  Bb7 {[%clk 0:02:55]} 5. O-O {[%clk 0:02:43]}  e6 {[%clk 0:02:53]} 6. b3 {[%clk 0:02:43]}  Be7 {[%clk 0:02:53]} 7. Bb2 {[%clk 0:02:43]}  cxd4 {[%clk 0:02:52]} 8. exd4 {[%clk 0:02:42]}  Be4 {[%clk 0:02:50]} 9. Re1 {[%clk 0:02:40]}  d5 {[%clk 0:02:49]} 10. Ne5 {[%clk 0:02:33]}  O-O {[%clk 0:02:48]} 11. Bxe4 {[%clk 0:02:20]}  Nxe4 {[%clk 0:02:46]} 12. Nd2 {[%clk 0:02:21]}  Nxd2 {[%clk 0:02:43]} 13. Qxd2 {[%clk 0:02:21]}  Bf6 {[%clk 0:02:39]} 14. Qf4 {[%clk 0:01:58]}  Nd7 {[%clk 0:02:34]} 15. Rad1 {[%clk 0:01:56]}  Rc8 {[%clk 0:02:30]} 16. Re2 {[%clk 0:01:54]}  Qc7 {[%clk 0:02:20]} 17. h4 {[%clk 0:01:46]}  Rfd8 {[%clk 0:01:40]} 18. h5 {[%clk 0:01:44]}  h6 {[%clk 0:01:39]} 19. Rd3 {[%clk 0:01:42]}  Nxe5 {[%clk 0:01:18]} 20. dxe5 {[%clk 0:01:41]}  Bg5 {[%clk 0:01:19]} 21. Qg4 {[%clk 0:01:40]}  Qc5 {[%clk 0:01:17]} 22. Rg3 {[%clk 0:01:29]}  Qf8 {[%clk 0:00:39]} 23. f4 {[%clk 0:01:20]}  Be7 {[%clk 0:00:39]} 24. f5 {[%clk 0:01:21]}  exf5 {[%clk 0:00:31]} 25. Qxf5 {[%clk 0:01:20]}  Rc6 {[%clk 0:00:31]} 26. e6 {[%clk 0:00:58]}  fxe6 {[%clk 0:00:31]} 27. Qg6 {[%clk 0:00:58]}  Bc5+ {[%clk 0:00:11]} 28. Kh1 {[%clk 0:00:46]}  Rd7 {[%clk 0:00:12]} 29. Rf3 {[%clk 0:00:22]}  Rf7 {[%clk 0:00:10]} 30. Rxe6 {[%clk 0:00:13]}  Rxf3 {[%clk 0:00:08]} 31. Rxc6 {[%clk 0:00:12]}  Rf1+ {[%clk 0:00:08]} 32. Kh2 {[%clk 0:00:12]}  Qf4+ {[%clk 0:00:08]} 33. g3 {[%clk 0:00:09]}  Qf2+ {[%clk 0:00:04]} 34. Kh3 {[%clk 0:00:10]}  Rh1+ {[%clk 0:00:04]} 35. Kg4 {[%clk 0:00:10]}  Qe2+ {[%clk 0:00:05]} 36. Kf5 {[%clk 0:00:07]}  Qe4# {[%clk 0:00:05]} 0-1


[Site "https://www.chess.com"]

[Event "Titled Tuesday Blitz April 11 Early 2023"]
[White "Perez Gormaz, Matias"]
[Black "Valle Maytin, Luis Enrique"]
[WhiteFideId "3406342"]
[BlackFideId "3503666"]
[WhiteElo "2362"]
[BlackElo "2225"]
[Result "1-0"]
[Round "02"]
[TimeControl "180+2"]
[Date "2023.04.11"]
[WhiteClock "0:00:08"]
[BlackClock "0:00:01"]

1. e4 {[%clk 0:03:00]}  c6 {[%clk 0:02:41]} 2. Nc3 {[%clk 0:02:57]}  d5 {[%clk 0:02:42]} 3. Nf3 {[%clk 0:02:58]}  dxe4 {[%clk 0:02:43]} 4. Nxe4 {[%clk 0:02:59]}  Nf6 {[%clk 0:02:43]} 5. Qe2 {[%clk 0:02:59]}  Nxe4 {[%clk 0:02:43]} 6. Qxe4 {[%clk 0:03:00]}  Nd7 {[%clk 0:02:43]} 7. Bc4 {[%clk 0:03:00]}  Nf6 {[%clk 0:02:43]} 8. Ne5 {[%clk 0:03:00]}  e6 {[%clk 0:02:42]} 9. Qe2 {[%clk 0:03:01]}  Bd6 {[%clk 0:02:41]} 10. O-O {[%clk 0:02:59]}  Qc7 {[%clk 0:02:40]} 11. f4 {[%clk 0:02:57]}  b5 {[%clk 0:02:39]} 12. Bd3 {[%clk 0:02:55]}  a6 {[%clk 0:02:39]} 13. b3 {[%clk 0:02:52]}  Bb7 {[%clk 0:02:35]} 14. Bb2 {[%clk 0:02:52]}  O-O-O {[%clk 0:02:33]} 15. a4 {[%clk 0:02:51]}  Nd5 {[%clk 0:02:29]} 16. g3 {[%clk 0:02:36]}  h5 {[%clk 0:02:22]} 17. h4 {[%clk 0:02:26]}  Kb8 {[%clk 0:02:05]} 18. Be4 {[%clk 0:02:18]}  f6 {[%clk 0:02:03]} 19. Nd3 {[%clk 0:02:06]}  b4 {[%clk 0:01:47]} 20. Bg2 {[%clk 0:01:47]}  a5 {[%clk 0:01:31]} 21. c4 {[%clk 0:01:37]}  bxc3 {[%clk 0:01:24]} 22. dxc3 {[%clk 0:01:37]}  Qb6+ {[%clk 0:01:10]} 23. Kh1 {[%clk 0:01:32]}  Ba6 {[%clk 0:00:59]} 24. c4 {[%clk 0:01:30]}  Qxb3 {[%clk 0:00:52]} 25. Rfb1 {[%clk 0:01:23]}  Qxc4 {[%clk 0:00:44]} 26. Bxf6+ {[%clk 0:01:16]}  Bb4 {[%clk 0:00:38]} 27. Bxd8 {[%clk 0:00:50]}  Rxd8 {[%clk 0:00:34]} 28. Qe5+ {[%clk 0:00:41]}  Ka7 {[%clk 0:00:22]} 29. Nxb4 {[%clk 0:00:40]}  axb4 {[%clk 0:00:16]} 30. Qxg7+ {[%clk 0:00:34]}  Ka8 {[%clk 0:00:15]} 31. Rc1 {[%clk 0:00:29]}  Nc3 {[%clk 0:00:05]} 32. Qc7 {[%clk 0:00:17]}  Rc8 {[%clk 0:00:04]} 33. Qa5 {[%clk 0:00:10]}  Kb7 {[%clk 0:00:02]} 34. Re1 {[%clk 0:00:10]}  b3 {[%clk 0:00:02]} 35. Kh2 {[%clk 0:00:04]}  b2 {[%clk 0:00:02]} 36. Rab1 {[%clk 0:00:04]}  Nxb1 {[%clk 0:00:02]} 37. Rxb1 {[%clk 0:00:05]}  Qc2 {[%clk 0:00:01]} 38. Qb4+ {[%clk 0:00:05]}  Ka7 {[%clk 0:00:01]} 39. Rxb2 {[%clk 0:00:05]}  Qd3 {[%clk 0:00:01]} 40. Qb6+ {[%clk 0:00:05]}  Ka8 {[%clk 0:00:01]} 41. Bxc6+ {[%clk 0:00:06]}  Rxc6 {[%clk 0:00:01]} 42. Qxc6+ {[%clk 0:00:07]}  Ka7 {[%clk 0:00:01]} 43. Qc7+ {[%clk 0:00:07]}  Ka8 {[%clk 0:00:01]} 44. Qb8# {[%clk 0:00:08]} 1-0


[Site "https://www.chess.com"]